fUSD/lending_fUSD_20250225
["ID","MTS","AMOUNT","RATE_DAILY","PERIOD"]
[354465155,1740519572738,-500.0,0.00049589,120]
[354465156,1740519572796,-500.0,0.00049589,120]
[354465157,1740519572850,-748.2,0.00049589,120]
[354465158,1740519572896,-500.0,0.00049589,120]
[354465159,1740519572943,-1089.97,0.00049589,120]
[354465160,1740519572987,-500.0,0.00049589,120]
[354465161,1740519573033,-500.0,0.00049589,120]
[354465162,1740519573083,-500.0,0.00049589,120]
[354465163,1740519573132,-500.0,0.00049589,120]
[354465164,1740519573180,-407.78,0.00049589,120]
[354465165,1740519573451,-500.0,0.00049589,120]
[354465166,1740519573505,-536.91,0.00049589,120]
[354465167,1740519573554,-500.0,0.00049589,120]
[354465168,1740519573607,-500.0,0.00049589,120]
[354465169,1740519573658,-500.0,0.00049589,120]
[354465170,1740519573704,-500.0,0.00049589,120]
[354465171,1740519573753,-500.0,0.00049589,120]
[354465172,1740519573803,-573.48,0.00049589,40]
[354465173,1740519573850,-500.0,0.00049589,120]
[354465174,1740519573897,-500.0,0.00049589,120]
[354465175,1740519573942,-202.4,0.00049589,120]
[354465176,1740519573986,-500.0,0.00049589,120]
[354465177,1740519574034,-366.56,0.00049589,120]
[354465178,1740519574080,-500.0,0.00049589,120]
[354465179,1740519574129,-1549.84,0.00049589,120]
[354465180,1740519574174,-500.0,0.00049589,120]
[354465181,1740519574217,-500.0,0.00049589,120]
[354465182,1740519574264,-2580.83,0.00049589,120]
[354465183,1740519574312,-500.0,0.00049589,120]
[354465184,1740519574360,-2242.55,0.00049589,120]
[354465185,1740519574407,-500.0,0.00049589,120]
[354465186,1740519574452,-716.88,0.00049589,120]
[354465187,1740519574500,-500.0,0.00049589,120]
[354465188,1740519574551,-824.17,0.00049589,120]
[354465189,1740519574598,-1544.56,0.00049589,120]
[354465190,1740519574646,-500.0,0.00049589,120]
[354465191,1740519574692,-2226.06,0.00049589,120]
[354465192,1740519574738,-500.0,0.00049589,120]
[354465193,1740519574782,-500.0,0.00049589,120]
[354465194,1740519574827,-9503.76,0.00049589,120]
[354465195,1740519574874,-5000.0,0.0004959,30]
[354465196,1740519574918,-6000.0,0.00049671,120]
[354465197,1740519574963,-3000.0,0.0004969,30]
[354465198,1740519575007,-7203.8,0.000497,40]
[354465199,1740519575056,-500.0,0.00049724,120]
[354465200,1740519575104,-2000.0,0.00049724,120]
[354465201,1740519575153,-500.0,0.00049724,120]
[354465202,1740519575202,-200.0,0.00049724,120]
[354465203,1740519575253,-500.0,0.00049726,120]
[354465204,1740519575304,-2000.0,0.0004978,30]
[354465205,1740519575359,-158.99,0.000498,48]
[354465206,1740519575411,-158.99,0.000498,48]
[354465207,1740519575466,-158.99,0.000498,48]
[354465208,1740519575511,-608.61046965,0.00049863,120]
[354465209,1740519575557,-500.0,0.00049863,120]
[354465210,1740519575609,-500.0,0.00049863,120]
[354465211,1740519575656,-500.0,0.00049863,120]
[354465212,1740519575701,-500.0,0.00049863,120]
[354465213,1740519575749,-293.18490707,0.00049863,120]
[354465214,1740519575798,-393.67513432,0.00049863,120]
[354465215,1740519575848,-554.27929309,0.00049863,120]
[354465216,1740519575897,-500.0,0.00049863,120]
[354465217,1740519575945,-500.0,0.00049863,120]
[354465218,1740519575994,-500.0,0.00049863,120]
[354465219,1740519576041,-500.0,0.00049863,120]
[354465220,1740519576090,-500.0,0.00049863,120]
[354465221,1740519576146,-500.0,0.00049863,120]
[354465222,1740519576196,-500.0,0.00049863,120]
[354465223,1740519576245,-500.0,0.00049863,120]
[354465224,1740519576301,-500.0,0.00049863,120]
[354465225,1740519576357,-500.0,0.00049863,120]
[354465226,1740519576408,-500.0,0.00049863,120]
[354465227,1740519576459,-500.0,0.00049863,120]
[354465228,1740519576508,-500.0,0.00049863,120]
[354465229,1740519576559,-500.0,0.00049863,120]
[354465230,1740519576610,-647.3344165,0.00049863,120]
[354465231,1740519576661,-500.0,0.00049863,120]
[354465232,1740519576711,-500.0,0.00049863,120]
[354465233,1740519576765,-500.0,0.00049863,120]
[354465234,1740519576816,-504.65208749,0.00049863,120]
[354465235,1740519576864,-500.0,0.00049863,120]
[354465236,1740519576915,-500.0,0.00049863,120]
[354465237,1740519576963,-505.11474053,0.00049863,120]
[354465238,1740519577009,-500.0,0.00049863,120]
[354465239,1740519577056,-500.0,0.00049863,120]
[354465240,1740519577104,-500.0,0.00049863,120]
[354465241,1740519577152,-500.0,0.00049863,120]
[354465242,1740519577200,-503.78557709,0.00049863,120]
[354465243,1740519577247,-500.0,0.00049863,120]
[354465244,1740519577295,-500.0,0.00049863,120]
[354465245,1740519577350,-500.0,0.00049863,120]
[354465246,1740519577399,-500.0,0.00049863,120]
[354465247,1740519577449,-500.0,0.00049863,120]
[354465248,1740519577497,-500.0,0.00049863,120]
[354465249,1740519577543,-500.0,0.00049863,120]
[354465250,1740519577590,-504.08493058,0.00049863,120]
[354465251,1740519577638,-500.0,0.00049863,120]
[354465252,1740519577687,-590.47,0.00049863,120]
[354465253,1740519577734,-500.0,0.00049863,120]
[354465254,1740519578027,-500.0,0.00049863,120]
[354465255,1740519578073,-500.0,0.00049863,120]
[354465256,1740519578118,-500.0,0.00049863,120]
[354465257,1740519578164,-505.34027584,0.00049863,120]
[354465258,1740519578211,-500.0,0.00049863,120]
[354465259,1740519578258,-500.0,0.00049863,120]
[354465260,1740519578310,-185.86829426,0.00049863,120]
[354465261,1740519578356,-500.0,0.00049863,120]
[354465262,1740519578403,-500.0,0.00049863,120]
[354465263,1740519578451,-500.0,0.00049863,120]
[354465264,1740519578498,-500.0,0.00049863,120]
[354465265,1740519578545,-1244.22,0.00049863,120]
[354465266,1740519578593,-500.0,0.00049863,120]
[354465267,1740519578640,-500.0,0.00049863,120]
[354465268,1740519578688,-500.0,0.00049863,120]
[354465269,1740519578734,-500.0,0.00049863,120]
[354465270,1740519578779,-500.0,0.00049863,120]
[354465271,1740519578824,-500.0,0.00049863,120]
[354465272,1740519578868,-500.0,0.00049863,120]
[354465273,1740519578913,-500.0,0.00049863,120]
[354465274,1740519578957,-510.52907582,0.00049863,120]
[354465275,1740519579012,-662.02,0.00049863,120]
[354465276,1740519579064,-500.0,0.00049863,120]
[354465277,1740519579114,-500.0,0.00049863,120]
[354465278,1740519579163,-500.0,0.00049863,120]
[354465279,1740519579213,-500.0,0.00049863,120]
[354465280,1740519579262,-500.0,0.00049863,120]
[354465281,1740519579311,-500.0,0.00049863,120]
[354465282,1740519579361,-506.87436937,0.00049863,120]
[354465283,1740519579410,-500.0,0.00049863,120]
[354465284,1740519579460,-500.0,0.00049863,120]
[354465285,1740519579509,-500.0,0.00049863,120]
[354465286,1740519579558,-500.0,0.00049863,120]
[354465287,1740519579608,-500.0,0.00049863,120]
[354465288,1740519579655,-753.54,0.00049863,120]
[354465289,1740519579703,-552.56,0.00049863,120]
[354465290,1740519579752,-500.0,0.00049863,120]
[354465291,1740519579801,-500.0,0.00049863,120]
[354465292,1740519579853,-500.0,0.00049863,120]
[354465293,1740519579903,-500.0,0.00049863,120]
[354465294,1740519579949,-500.0,0.00049863,120]
[354465295,1740519579995,-500.0,0.00049863,120]
[354465296,1740519580047,-500.0,0.00049863,120]
[354465297,1740519580094,-500.0,0.00049863,120]
[354465298,1740519580142,-500.0,0.00049863,120]
[354465299,1740519580188,-819.94,0.00049863,120]
[354465300,1740519580235,-500.0,0.00049863,120]
[354465301,1740519580287,-1414.12,0.00049863,120]
[354465302,1740519580338,-500.0,0.00049863,120]
[354465303,1740519580386,-500.0,0.00049863,120]
[354465304,1740519580431,-500.0,0.00049863,120]
[354465305,1740519580477,-500.0,0.00049863,120]
[354465306,1740519580524,-500.0,0.00049863,120]
[354465307,1740519580570,-500.0,0.00049863,120]
[354465308,1740519580617,-500.0,0.00049863,120]
[354465309,1740519580665,-502.93559593,0.00049863,120]
[354465310,1740519580712,-500.0,0.00049863,120]
[354465311,1740519580757,-1090.06,0.00049863,120]
[354465312,1740519580807,-500.0,0.00049863,120]
[354465313,1740519580853,-500.0,0.00049863,120]
[354465314,1740519580904,-500.0,0.00049863,120]
[354465315,1740519580954,-500.0,0.00049863,120]
[354465316,1740519581001,-541.39944901,0.00049863,120]
[354465317,1740519581046,-500.0,0.00049863,120]
[354465318,1740519581092,-500.0,0.00049863,120]
[354465319,1740519581138,-1331.98,0.00049863,120]
[354465320,1740519581183,-500.0,0.00049863,120]
[354465321,1740519581229,-500.0,0.00049863,120]
[354465322,1740519581276,-332.70697929,0.00049863,120]
[354465323,1740519581324,-500.0,0.00049863,120]
[354465324,1740519581370,-500.0,0.00049863,120]
[354465325,1740519581417,-500.0,0.00049863,120]
[354465326,1740519581464,-500.0,0.00049863,120]
[354465327,1740519581509,-500.0,0.00049863,120]
[354465328,1740519581555,-500.0,0.00049863,120]
[354465329,1740519581604,-500.0,0.00049863,120]
[354465330,1740519581651,-500.0,0.00049863,120]
[354465331,1740519581700,-500.0,0.00049863,120]
[354465332,1740519581748,-1140.86,0.00049863,120]
[354465333,1740519581796,-500.0,0.00049863,120]
[354465334,1740519581846,-500.0,0.00049863,120]
[354465335,1740519581894,-500.0,0.00049863,120]
[354465336,1740519581940,-500.0,0.00049863,120]
[354465337,1740519581994,-500.0,0.00049863,120]
[354465338,1740519582040,-791.58,0.00049863,120]
[354465339,1740519582085,-500.0,0.00049863,120]
[354465340,1740519582296,-255.57723115,0.00049863,120]
[354465341,1740519582380,-500.0,0.00049863,120]
[354465342,1740519582430,-500.0,0.00049863,120]
[354465343,1740519582476,-500.0,0.00049863,120]
[354465344,1740519582523,-500.0,0.00049863,120]
[354465345,1740519582572,-500.36879549,0.00049863,120]
[354465346,1740519582620,-500.0,0.00049863,120]
[354465347,1740519582666,-500.0,0.00049863,120]
[354465348,1740519582713,-542.96,0.00049863,120]
[354465349,1740519582758,-500.0,0.00049863,120]
[354465350,1740519582807,-1104.91,0.00049863,120]
[354465351,1740519582852,-500.0,0.00049863,120]
[354465352,1740519582896,-500.0,0.00049863,120]
[354465353,1740519582938,-500.0,0.00049863,120]
[354465354,1740519582982,-500.0,0.00049863,120]
[354465355,1740519583024,-500.0,0.00049863,120]
[354465356,1740519583070,-500.0,0.00049863,120]
[354465357,1740519583120,-500.0,0.00049863,120]
[354465358,1740519583170,-715.38,0.00049863,120]
[354465359,1740519583219,-500.0,0.00049863,120]
[354465360,1740519583272,-500.0,0.00049863,120]
[354465361,1740519583322,-1464.17,0.00049863,120]
[354465362,1740519583374,-500.0,0.00049863,120]
[354465363,1740519583426,-500.0,0.00049863,120]
[354465364,1740519583476,-500.0,0.00049863,120]
[354465365,1740519583530,-500.0,0.00049863,120]
[354465366,1740519583580,-500.0,0.00049863,120]
[354465367,1740519583629,-500.0,0.00049863,120]
[354465368,1740519583676,-500.0,0.00049863,120]
[354465369,1740519583721,-500.0,0.00049863,120]
[354465370,1740519583767,-500.0,0.00049863,120]
[354465371,1740519583819,-500.0,0.00049863,120]
[354465372,1740519583867,-500.0,0.00049863,120]
[354465373,1740519583914,-500.0,0.00049863,120]
[354465374,1740519583962,-500.0,0.00049863,120]
[354465375,1740519584008,-500.0,0.00049863,120]
[354465376,1740519584054,-252.00819722,0.00049863,120]
[354465377,1740519584099,-920.4,0.00049863,120]
[354465379,1740519584146,-500.0,0.00049863,120]
[354465380,1740519584200,-500.0,0.00049863,120]
[354465381,1740519584251,-500.0,0.00049863,120]
[354465382,1740519584300,-716.59,0.00049863,120]
[354465383,1740519584351,-508.35143467,0.00049863,120]
[354465384,1740519584404,-500.0,0.00049863,120]
[354465385,1740519584453,-500.0,0.00049863,120]
[354465386,1740519584501,-500.0,0.00049863,120]
[354465387,1740519584548,-500.0,0.00049863,120]
[354465388,1740519584597,-500.0,0.00049863,120]
[354465389,1740519584648,-500.0,0.00049863,120]
[354465390,1740519584701,-500.0,0.00049863,120]
[354465391,1740519584754,-500.0,0.00049863,120]
[354465392,1740519584809,-500.0,0.00049863,120]
[354465393,1740519584864,-500.0,0.00049863,120]
[354465394,1740519584913,-368.99086802,0.00049863,120]
[354465395,1740519584959,-500.0,0.00049863,120]
[354465396,1740519585006,-959.71,0.00049863,120]
[354465397,1740519585053,-500.0,0.00049863,120]
[354465398,1740519585102,-238.32954787,0.00049863,120]
[354465399,1740519585153,-500.0,0.00049863,120]
[354465400,1740519585203,-585.64300686,0.00049863,120]
[354465401,1740519585257,-533.85262723,0.00049863,120]
[354465402,1740519585306,-500.0,0.00049863,120]
[354465403,1740519585350,-500.0,0.00049863,120]
[354465404,1740519585401,-500.0,0.00049863,120]
[354465405,1740519585448,-512.46335466,0.00049863,120]
[354465406,1740519585496,-500.0,0.00049863,120]
[354465407,1740519585542,-560.27,0.00049863,120]
[354465408,1740519585588,-500.0,0.00049863,120]
[354465409,1740519585636,-500.0,0.00049863,120]
[354465410,1740519585683,-500.0,0.00049863,120]
[354465411,1740519585731,-500.0,0.00049863,120]
[354465412,1740519585781,-500.0,0.00049863,120]
[354465413,1740519585829,-500.0,0.00049863,120]
[354465414,1740519585879,-500.0,0.00049863,120]
[354465415,1740519585928,-500.0,0.00049863,120]
[354465416,1740519585977,-502.0286834,0.00049863,120]
[354465417,1740519586026,-500.0,0.00049863,120]
[354465418,1740519586074,-500.0,0.00049863,120]
[354465419,1740519586120,-500.0,0.00049863,120]
[354465420,1740519586168,-500.0,0.00049863,120]
[354465421,1740519586214,-500.0,0.00049863,120]
[354465422,1740519586262,-500.0,0.00049863,120]
[354465423,1740519586313,-502.21058961,0.00049863,120]
[354465424,1740519586361,-500.0,0.00049863,120]
[354465425,1740519586617,-892.33,0.00049863,120]
[354465426,1740519586667,-500.0,0.00049863,120]
[354465427,1740519586716,-500.0,0.00049863,120]
[354465428,1740519586764,-500.0,0.00049863,120]
[354465429,1740519586816,-500.0,0.00049863,120]
[354465430,1740519586865,-999.94,0.00049863,120]
[354465431,1740519586913,-742.37,0.00049863,120]
[354465432,1740519586961,-500.0,0.00049863,120]
[354465433,1740519587008,-899.14,0.00049863,120]
[354465434,1740519587055,-1034.11,0.00049863,120]
[354465435,1740519587102,-500.0,0.00049863,120]
[354465436,1740519587149,-500.0,0.00049863,120]
[354465437,1740519587196,-500.0,0.00049863,120]
[354465438,1740519587242,-826.32,0.00049863,120]
[354465439,1740519587290,-500.0,0.00049863,120]
[354465440,1740519587341,-1151.66,0.00049863,120]
[354465441,1740519587388,-500.0,0.00049863,120]
[354465442,1740519587437,-581.13465825,0.00049863,120]
[354465443,1740519587488,-500.0,0.00049863,120]
[354465444,1740519587536,-500.0,0.00049863,120]
[354465445,1740519587586,-500.0,0.00049863,120]
[354465446,1740519587634,-500.0,0.00049863,120]
[354465447,1740519587683,-531.03773733,0.00049863,120]
[354465448,1740519587731,-181.84563492,0.00049863,120]
[354465449,1740519587780,-500.0,0.00049863,120]
[354465450,1740519587825,-500.0,0.00049863,120]
[354465451,1740519587872,-500.0,0.00049863,120]
[354465452,1740519587922,-326.32774715,0.00049863,120]
[354465453,1740519587970,-595.72,0.00049863,120]
[354465454,1740519588018,-500.0,0.00049863,120]
[354465455,1740519588067,-500.0,0.00049863,120]
[354465456,1740519588116,-500.0,0.00049863,120]
[354465457,1740519588163,-500.0,0.00049863,120]
[354465458,1740519588210,-500.0,0.00049863,120]
[354465459,1740519588260,-500.0,0.00049863,120]
[354465460,1740519588313,-507.77,0.00049863,120]
[354465461,1740519588366,-517.84640215,0.00049863,120]
[354465462,1740519588418,-500.0,0.00049863,120]
[354465463,1740519588475,-500.0,0.00049863,120]
[354465464,1740519588532,-500.0,0.00049863,120]
[354465465,1740519588588,-727.74,0.00049863,120]
[354465466,1740519588671,-500.0,0.00049863,120]
[354465467,1740519588752,-500.0,0.00049863,120]
[354465468,1740519588837,-500.0,0.00049863,120]
[354465469,1740519588920,-382.84849927,0.00049863,120]
[354465470,1740519588997,-500.0,0.00049863,120]
[354465471,1740519589071,-500.0,0.00049863,120]
[354465472,1740519589143,-500.0,0.00049863,120]
[354465473,1740519589217,-584.26,0.00049863,120]
[354465474,1740519589292,-500.0,0.00049863,120]
[354465475,1740519589368,-541.43,0.00049863,120]
[354465476,1740519589443,-500.0,0.00049863,120]
[354465477,1740519589516,-566.72,0.00049863,120]
[354465478,1740519589594,-500.0,0.00049863,120]
[354465479,1740519589666,-500.0,0.00049863,120]
[354465480,1740519589739,-500.0,0.00049863,120]
[354465481,1740519589808,-716.63,0.00049863,120]
[354465482,1740519589883,-500.0,0.00049863,120]
[354465483,1740519589954,-903.76,0.00049863,120]
[354465484,1740519590034,-675.46,0.00049863,120]
[354465485,1740519590104,-500.0,0.00049863,120]
[354465486,1740519590185,-500.0,0.00049863,120]
[354465487,1740519590256,-500.0,0.00049863,120]
[354465488,1740519590327,-500.0,0.00049863,120]
[354465489,1740519590397,-500.0,0.00049863,120]
[354465490,1740519590466,-500.0,0.00049863,120]
[354465491,1740519590532,-500.0,0.00049863,120]
[354465492,1740519590599,-500.0,0.00049863,120]
[354465493,1740519590669,-500.0,0.00049863,120]
[354465494,1740519590736,-500.0,0.00049863,120]
[354465495,1740519590804,-697.09,0.00049863,120]
[354465496,1740519590880,-500.0,0.00049863,120]
[354465497,1740519590947,-593.30280163,0.00049863,120]
[354465498,1740519591010,-1057.48,0.00049863,30]
[354465499,1740519591083,-500.0,0.00049863,120]
[354465500,1740519591153,-500.0,0.00049863,120]
[354465501,1740519591219,-500.0,0.00049863,120]
[354465502,1740519591295,-500.0,0.00049863,120]
[354465503,1740519591371,-641.64,0.00049863,120]
[354465504,1740519591447,-500.0,0.00049863,120]
[354465505,1740519591517,-500.0,0.00049863,120]
[354465506,1740519591842,-500.0,0.00049863,120]
[354465507,1740519591895,-500.0,0.00049863,120]
[354465508,1740519591944,-835.65,0.00049863,120]
[354465509,1740519591992,-500.0,0.00049863,120]
[354465510,1740519592040,-500.0,0.00049863,120]
[354465511,1740519592089,-571.49,0.00049863,120]
[354465512,1740519592138,-500.0,0.00049863,120]
[354465513,1740519592191,-500.0,0.00049863,120]
[354465514,1740519592242,-500.0,0.00049863,120]
[354465515,1740519592290,-500.0,0.00049863,120]
[354465516,1740519592341,-500.0,0.00049863,120]
[354465517,1740519592401,-500.0,0.00049863,120]
[354465518,1740519592452,-500.0,0.00049863,120]
[354465519,1740519592503,-500.0,0.00049863,120]
[354465520,1740519592553,-500.0,0.00049863,120]
[354465521,1740519592602,-616.19,0.00049863,120]
[354465522,1740519592650,-219.41863273,0.00049863,120]
[354465523,1740519592697,-507.94938228,0.00049863,120]
[354465524,1740519592743,-500.0,0.00049863,120]
[354465525,1740519592789,-500.0,0.00049863,120]
[354465526,1740519592837,-665.24,0.00049863,120]
[354465527,1740519592885,-500.0,0.00049863,120]
[354465528,1740519592931,-500.0,0.00049863,120]
[354465529,1740519592979,-500.0,0.00049863,120]
[354465530,1740519593025,-500.0,0.00049863,120]
[354465531,1740519593070,-500.0,0.00049863,120]
[354465532,1740519593122,-2011.63,0.00049863,120]
[354465533,1740519593177,-500.0,0.00049863,120]
[354465534,1740519593234,-500.0,0.00049863,120]
[354465535,1740519593283,-877.65,0.00049863,120]
[354465536,1740519593334,-500.0,0.00049863,120]
[354465537,1740519593383,-759.99,0.00049863,120]
[354465538,1740519593431,-500.0,0.00049863,120]
[354465539,1740519593479,-500.0,0.00049863,120]
[354465540,1740519593527,-500.0,0.00049863,120]
[354465541,1740519593575,-517.69932928,0.00049863,120]
[354465542,1740519593625,-500.0,0.00049863,120]
[354465543,1740519593673,-500.0,0.00049863,120]
[354465544,1740519593721,-500.0,0.00049863,120]
[354465545,1740519593773,-500.0,0.00049863,120]
[354465546,1740519593834,-500.0,0.00049863,120]
[354465547,1740519593895,-500.0,0.00049863,120]
[354465548,1740519593953,-967.43,0.00049863,120]
[354465549,1740519594002,-1032.67,0.00049863,120]
[354465550,1740519594051,-500.0,0.00049863,120]
[354465551,1740519594094,-500.0,0.00049863,120]
[354465552,1740519594139,-500.0,0.00049863,120]
[354465553,1740519594183,-500.0,0.00049863,120]
[354465554,1740519594228,-500.0,0.00049863,120]
[354465555,1740519594275,-500.0,0.00049863,120]
[354465556,1740519594322,-500.0,0.00049863,120]
[354465557,1740519594370,-500.0,0.00049863,120]
[354465558,1740519594416,-500.0,0.00049863,120]
[354465559,1740519594462,-500.0,0.00049863,120]
[354465560,1740519594509,-500.0,0.00049863,120]
[354465561,1740519594555,-500.0,0.00049863,120]
[354465562,1740519594603,-186.03,0.00049863,120]
[354465563,1740519594649,-500.0,0.00049863,120]
[354465564,1740519594699,-545.64,0.00049863,120]
[354465565,1740519594744,-1209.75,0.00049863,120]
[354465566,1740519594788,-500.0,0.00049863,120]
[354465567,1740519594834,-1396.31,0.00049863,120]
[354465568,1740519594878,-508.08184141,0.00049863,120]
[354465569,1740519594924,-500.0,0.00049863,120]
[354465570,1740519594968,-1615.84,0.00049863,120]
[354465571,1740519595012,-569.06,0.00049863,120]
[354465572,1740519595058,-726.47,0.00049863,120]
[354465573,1740519595102,-546.65,0.00049863,120]
[354465574,1740519595156,-1211.56,0.00049863,120]
[354465575,1740519595203,-500.0,0.00049863,120]
[354465576,1740519595250,-1000.0,0.00049863,120]
[354465577,1740519595295,-500.0,0.00049863,120]
[354465578,1740519595341,-500.0,0.00049863,120]
[354465579,1740519595390,-500.0,0.00049863,120]
[354465580,1740519595437,-615.60686198,0.00049863,120]
[354465581,1740519595485,-1800.96,0.00049863,120]
[354465582,1740519595531,-500.0,0.00049863,120]
[354465583,1740519595579,-500.0,0.00049863,120]
[354465584,1740519595628,-500.0,0.00049863,120]
[354465585,1740519595674,-1729.39,0.00049863,120]
[354465586,1740519595719,-2065.84,0.00049863,120]
[354465587,1740519595769,-500.0,0.00049863,120]
[354465588,1740519595825,-500.0,0.00049863,120]
[354465589,1740519596078,-500.0,0.00049863,120]
[354465590,1740519596124,-500.0,0.00049863,120]
[354465591,1740519596171,-971.68,0.00049863,120]
[354465592,1740519596219,-500.0,0.00049863,120]
[354465593,1740519596266,-500.0,0.00049863,120]
[354465594,1740519596313,-500.0,0.00049863,120]
[354465595,1740519596359,-500.0,0.00049863,120]
[354465596,1740519596406,-500.0,0.00049863,120]
[354465597,1740519596453,-1970.74,0.00049863,120]
[354465598,1740519596500,-1777.71,0.00049863,120]
[354465599,1740519596551,-840.37,0.00049863,120]
[354465600,1740519596597,-2313.54,0.00049863,120]
[354465601,1740519596644,-500.0,0.00049863,120]
[354465602,1740519596689,-513.71,0.00049863,120]
[354465603,1740519596734,-542.7,0.00049863,120]
[354465604,1740519596782,-500.0,0.00049863,120]
[354465605,1740519596828,-500.0,0.00049863,120]
[354465606,1740519596875,-500.0,0.00049863,120]
[354465607,1740519596922,-1215.27,0.00049863,120]
[354465608,1740519596969,-500.0,0.00049863,120]
[354465609,1740519597014,-650.97,0.00049863,120]
[354465610,1740519597058,-537.98394118,0.00049863,120]
[354465611,1740519597105,-500.0,0.00049863,120]
[354465612,1740519597151,-500.0,0.00049863,120]
[354465613,1740519597198,-500.0,0.00049863,120]
[354465614,1740519597249,-1692.33,0.00049863,120]
[354465615,1740519597296,-500.0,0.00049863,120]
[354465616,1740519597344,-500.0,0.00049863,120]
[354465617,1740519597397,-500.0,0.00049863,120]
[354465618,1740519597446,-646.97,0.00049863,120]
[354465619,1740519597494,-717.58,0.00049863,120]
[354465620,1740519597542,-500.0,0.00049863,120]
[354465621,1740519597589,-500.0,0.00049863,120]
[354465622,1740519597638,-500.0,0.00049863,120]
[354465623,1740519597684,-500.0,0.00049863,120]
[354465624,1740519597731,-500.0,0.00049863,120]
[354465625,1740519597782,-1422.79,0.00049863,120]
[354465626,1740519597829,-1382.68,0.00049863,120]
[354465627,1740519597877,-519.51,0.00049863,120]
[354465628,1740519597925,-2756.83,0.00049863,120]
[354465629,1740519597972,-512.97688258,0.00049863,120]
[354465630,1740519598018,-1058.23,0.00049863,120]
[354465631,1740519598063,-500.0,0.00049863,120]
[354465632,1740519598109,-500.0,0.00049863,120]
[354465633,1740519598157,-993.04,0.00049863,120]
[354465634,1740519598205,-1028.59,0.00049863,120]
[354465635,1740519598253,-500.0,0.00049863,120]
[354465636,1740519598301,-500.0,0.00049863,120]
[354465637,1740519598348,-1272.19,0.00049863,120]
[354465638,1740519598400,-500.0,0.00049863,120]
[354465639,1740519598447,-738.46,0.00049863,120]
[354465640,1740519598496,-993.06,0.00049863,120]
[354465641,1740519598543,-500.0,0.00049863,120]
[354465642,1740519598592,-500.0,0.00049863,120]
[354465643,1740519598643,-500.0,0.00049863,120]
[354465644,1740519598695,-500.0,0.00049863,120]
[354465645,1740519598746,-500.0,0.00049863,120]
[354465646,1740519598794,-696.75,0.00049863,120]
[354465647,1740519598841,-1182.45,0.00049863,120]
[354465648,1740519598890,-1144.21,0.00049863,120]
[354465649,1740519598936,-1825.07,0.00049863,120]
[354465650,1740519598983,-500.0,0.00049863,120]
[354465651,1740519599030,-500.0,0.00049863,120]
[354465652,1740519599076,-686.47,0.00049863,120]
[354465653,1740519599125,-500.0,0.00049863,120]
[354465654,1740519599172,-500.0,0.00049863,120]
[354465655,1740519599220,-920.38,0.00049863,120]